fUSD/lending_fUSD_20240423
["ID","MTS","AMOUNT","RATE_DAILY","PERIOD"]
[323296074,1713879054205,-500.0,0.00012294,2]
[323296075,1713879054214,-630.36,0.00012294,2]
[323296076,1713879054224,-500.0,0.00012295,2]
[323296077,1713879054234,-500.0,0.00012295,2]
[323296078,1713879054243,-500.0,0.00012295,2]
[323296079,1713879054253,-500.0,0.00012295,2]
[323296080,1713879054263,-500.0,0.00012295,2]
[323296081,1713879054272,-500.0,0.00012295,2]
[323296082,1713879054281,-500.0,0.00012295,2]
[323296083,1713879054291,-500.0,0.00012295,2]
[323296084,1713879054300,-598.13233335,0.00012295,2]
[323296085,1713879054310,-791.32,0.00012295,2]
[323296086,1713879054320,-500.0,0.00012295,2]
[323296087,1713879054329,-500.0,0.00012295,2]
[323296088,1713879054339,-500.0,0.00012295,2]
[323296089,1713879054348,-500.0,0.00012295,2]
[323296090,1713879054357,-500.0,0.00012295,2]
[323296091,1713879054366,-500.0,0.00012295,2]
[323296092,1713879054375,-500.0,0.00012295,2]
[323296093,1713879054385,-500.0,0.00012295,2]
[323296094,1713879054394,-500.0,0.00012295,2]
[323296095,1713879054403,-615.07,0.00012295,2]
[323296096,1713879054412,-500.0,0.00012295,2]
[323296097,1713879054421,-150.0,0.00012298,2]
[323296098,1713879054430,-150.0,0.00012299,2]
[323296099,1713879054440,-455.78271799,0.000123,2]
[323296100,1713879054449,-900.0,0.000123,4]
[323296101,1713879054458,-150.0,0.00012301,2]
[323296102,1713879054468,-150.0,0.00012302,2]
[323296103,1713879054477,-150.0,0.0001231,2]
[323296104,1713879054486,-150.0,0.00012319,2]
[323296105,1713879054495,-150.0,0.00012323,2]
[323296106,1713879054504,-150.0,0.00012324,2]
[323296107,1713879054513,-150.0,0.00012328,2]
[323296108,1713879054523,-150.0,0.00012339,2]
[323296109,1713879054534,-150.0,0.00012342,2]
[323296110,1713879054544,-150.0,0.00012347,2]
[323296111,1713879054554,-150.0,0.00012349,2]
[323296112,1713879054563,-150.0,0.00012361,2]
[323296113,1713879054574,-150.0,0.00012363,2]
[323296114,1713879054583,-150.0,0.00012364,2]
[323296115,1713879054592,-2845.29422279,0.00012365,2]
[323296116,1713879054601,-791.32,0.00012369,2]
[323296117,1713879054610,-791.32,0.00012369,2]
[323296118,1713879054619,-150.0,0.00012372,2]
[323296119,1713879054628,-150.0,0.00012374,2]
[323296120,1713879054637,-150.0,0.00012374,2]
[323296121,1713879054646,-150.0,0.00012385,2]
[323296122,1713879054655,-150.0,0.00012392,2]
[323296123,1713879054665,-150.0,0.00012393,2]
[323296124,1713879054673,-150.0,0.00012393,2]
[323296125,1713879054682,-150.0,0.00012393,2]
[323296126,1713879054691,-150.0,0.00012394,2]
[323296127,1713879054702,-150.0,0.00012395,2]
[323296128,1713879054712,-150.0,0.00012397,2]
[323296129,1713879054721,-150.0,0.00012398,2]
[323296130,1713879054730,-1200.0,0.000124,4]
[323296131,1713879054739,-150.0,0.00012403,2]
[323296132,1713879054748,-150.0,0.00012404,2]
[323296133,1713879054757,-150.0,0.00012408,2]
[323296134,1713879054766,-150.0,0.00012408,2]
[323296135,1713879054775,-150.0,0.00012416,2]
[323296136,1713879054785,-150.0,0.00012417,2]
[323296137,1713879054794,-150.0,0.00012419,2]
[323296138,1713879054803,-150.0,0.0001242,2]
[323296139,1713879054812,-150.0,0.00012425,2]
[323296140,1713879054822,-621.92,0.00012435,2]
[323296141,1713879054832,-150.0,0.00012436,2]
[323296142,1713879054842,-150.0,0.00012439,2]
[323296143,1713879054851,-1000.0,0.00012443,2]
[323296144,1713879054861,-500.0,0.00012443,2]
[323296145,1713879054870,-160.6539788,0.00012443,2]
[323296146,1713879054879,-150.0,0.00012446,2]
[323296147,1713879054889,-150.0,0.0001245,2]
[323296148,1713879054898,-2845.29422279,0.00012454,2]
[323296149,1713879054907,-150.0,0.00012455,2]
[323296150,1713879054916,-150.0,0.00012463,2]
[323296151,1713879054925,-150.0,0.00012463,2]
[323296152,1713879054934,-150.0,0.00012465,2]
[323296153,1713879054943,-791.32,0.00012466,2]
[323296154,1713879054952,-791.32,0.00012469,2]
[323296155,1713879054966,-150.0,0.00012478,2]
[323296156,1713879054975,-150.0,0.0001248,2]
[323296157,1713879054985,-150.0,0.00012484,2]
[323296158,1713879054994,-150.0,0.00012485,2]
[323296159,1713879055004,-150.0,0.00012486,2]
[323296160,1713879055013,-251.6194917,0.000125,2]
[323296161,1713879055022,-1500.0,0.000125,4]
[323296162,1713879055031,-150.0,0.00012501,2]
[323296163,1713879055043,-150.0,0.00012501,2]
[323296164,1713879055052,-150.0,0.00012502,2]
[323296165,1713879055061,-150.0,0.00012505,2]
[323296166,1713879055072,-150.0,0.00012506,2]
[323296167,1713879055081,-150.0,0.00012515,2]
[323296168,1713879055090,-150.0,0.00012519,2]
[323296169,1713879055099,-150.0,0.00012524,2]
[323296170,1713879055109,-150.0,0.00012526,2]
[323296171,1713879055118,-150.0,0.00012528,2]
[323296172,1713879055127,-150.0,0.00012532,2]
[323296173,1713879055136,-2845.29422279,0.00012543,2]
[323296174,1713879055145,-150.0,0.00012544,2]
[323296175,1713879055155,-150.0,0.00012544,2]
[323296176,1713879055164,-150.0,0.00012546,2]
[323296177,1713879055174,-150.0,0.00012549,2]
[323296178,1713879055183,-150.0,0.00012552,2]
[323296179,1713879055192,-150.0,0.00012554,2]
[323296180,1713879055201,-150.0,0.00012557,2]
[323296181,1713879055269,-150.0,0.00012557,2]
[323296182,1713879055278,-150.0,0.00012559,2]
[323296183,1713879055287,-150.0,0.00012561,2]
[323296184,1713879055297,-500.0,0.00012565,2]
[323296185,1713879055306,-500.0,0.00012565,2]
[323296186,1713879055315,-500.0,0.00012565,2]
[323296187,1713879055326,-2188.35,0.00012566,2]
[323296188,1713879055335,-500.0,0.00012566,2]
[323296189,1713879055344,-500.0,0.00012566,2]
[323296190,1713879055353,-500.0,0.00012566,2]
[323296191,1713879055363,-1394.36,0.00012566,2]
[323296192,1713879055372,-816.8,0.00012566,2]
[323296193,1713879055381,-500.0,0.00012566,2]
[323296194,1713879055390,-500.0,0.00012566,2]
[323296195,1713879055399,-500.0,0.00012566,2]
[323296196,1713879055408,-910.14,0.00012566,2]
[323296197,1713879055417,-500.0,0.00012566,2]
[323296198,1713879055426,-500.0,0.00012566,2]
[323296199,1713879055435,-3076.54,0.00012566,2]
[323296200,1713879055445,-1296.05,0.00012566,2]
[323296201,1713879055454,-500.0,0.00012566,2]
[323296202,1713879055463,-544.58,0.00012566,2]
[323296203,1713879055472,-508.61,0.00012566,2]
[323296204,1713879055481,-1145.07,0.00012566,2]
[323296205,1713879055490,-855.89,0.00012566,2]
[323296206,1713879055499,-500.0,0.00012566,2]
[323296207,1713879055508,-830.47,0.00012566,2]
[323296208,1713879055516,-567.03,0.00012566,2]
[323296209,1713879055525,-2823.02,0.00012566,2]
[323296210,1713879055534,-500.0,0.00012566,2]
[323296211,1713879055543,-500.0,0.00012566,2]
[323296212,1713879055552,-500.0,0.00012566,2]
[323296213,1713879055561,-594.51169738,0.00012566,2]
[323296214,1713879055571,-2294.75,0.00012566,2]
[323296215,1713879055580,-500.0,0.00012566,2]
[323296216,1713879055589,-559.13,0.00012566,2]
[323296217,1713879055598,-1838.04,0.00012566,2]
[323296218,1713879055607,-500.0,0.00012566,2]
[323296219,1713879055616,-1806.62,0.00012566,2]
[323296220,1713879055625,-11361.37,0.00012566,2]
[323296221,1713879055634,-680.07,0.00012566,2]
[323296222,1713879055643,-500.0,0.00012566,2]
[323296223,1713879055652,-894.91,0.00012566,2]
[323296224,1713879055661,-1660.22,0.00012566,2]
[323296225,1713879055670,-5808.11,0.00012566,2]
[323296226,1713879055679,-551.97,0.00012566,2]
[323296227,1713879055689,-500.0,0.00012566,2]
[323296228,1713879055698,-604.3,0.00012566,2]
[323296229,1713879055707,-500.0,0.00012566,2]
[323296230,1713879055717,-586.62,0.00012566,2]
[323296231,1713879055726,-2254.8,0.00012566,2]
[323296232,1713879055735,-500.0,0.00012566,2]
[323296233,1713879055744,-5569.83,0.00012566,2]
[323296234,1713879055753,-789.79,0.00012566,2]
[323296235,1713879055763,-1722.31,0.00012566,2]
[323296236,1713879055771,-811.09,0.00012566,2]
[323296237,1713879055781,-500.0,0.00012566,2]
[323296238,1713879055789,-2712.98,0.00012566,2]
[323296239,1713879055798,-500.0,0.00012566,2]
[323296240,1713879055807,-558.75,0.00012566,2]
[323296241,1713879055816,-571.91,0.00012566,2]
[323296242,1713879055827,-810.57,0.00012566,2]
[323296243,1713879055837,-500.0,0.00012566,2]
[323296244,1713879055846,-500.0,0.00012566,2]
[323296245,1713879055855,-1124.2,0.00012566,2]
[323296246,1713879055865,-532.22,0.00012566,2]
[323296247,1713879055875,-500.0,0.00012566,2]
[323296248,1713879055884,-12796.31,0.00012566,2]
[323296249,1713879055893,-22994.43,0.00012566,2]
[323296250,1713879055902,-11401.26194887,0.00012567,2]
[323296251,1713879055912,-536.02,0.00012567,2]
[323296252,1713879055922,-500.0,0.00012567,2]
[323296253,1713879055932,-282.42,0.00012567,2]
[323296254,1713879055942,-500.0,0.00012567,2]
[323296255,1713879055951,-500.0,0.00012567,2]
[323296256,1713879055965,-500.0,0.00012567,2]
[323296257,1713879055974,-500.0,0.00012567,2]
[323296258,1713879055983,-373.09,0.00012567,2]
[323296259,1713879055993,-662.1,0.00012567,2]
[323296260,1713879056003,-500.0,0.00012567,2]
[323296261,1713879056011,-355.73,0.00012567,2]
[323296262,1713879056021,-658.17,0.00012567,2]
[323296263,1713879056032,-663.15,0.00012567,2]
[323296264,1713879056042,-500.0,0.00012567,2]
[323296265,1713879056051,-500.0,0.00012567,2]
[323296266,1713879056060,-500.0,0.00012567,2]
[323296267,1713879056068,-500.0,0.00012567,2]
[323296268,1713879056078,-630.3,0.00012567,2]
[323296269,1713879056087,-500.0,0.00012567,2]
[323296270,1713879056097,-500.0,0.00012567,2]
[323296271,1713879056106,-527.86,0.00012567,2]
[323296272,1713879056115,-500.0,0.00012567,2]
[323296273,1713879056124,-500.0,0.00012567,2]
[323296274,1713879056134,-500.0,0.00012567,2]
[323296275,1713879056143,-614.59,0.00012567,2]
[323296276,1713879056152,-500.0,0.00012567,2]
[323296277,1713879056161,-500.0,0.00012567,2]
[323296278,1713879056171,-552.51,0.00012567,2]
[323296279,1713879056180,-899.31,0.00012567,2]
[323296280,1713879056189,-921.24,0.00012567,2]
[323296281,1713879056199,-500.0,0.00012567,2]
[323296282,1713879056208,-500.0,0.00012567,2]
[323296283,1713879056218,-739.64,0.00012567,2]
[323296284,1713879056227,-500.0,0.00012567,2]
[323296285,1713879056236,-500.0,0.00012567,2]
[323296286,1713879056245,-710.84,0.00012567,2]
[323296287,1713879056255,-500.0,0.00012567,2]
[323296288,1713879056264,-840.34,0.00012567,2]
[323296289,1713879056273,-500.0,0.00012567,2]
[323296290,1713879056282,-621.12354322,0.00012567,2]
[323296291,1713879056292,-500.0,0.00012567,2]
[323296292,1713879056301,-500.0,0.00012567,2]
[323296293,1713879056310,-500.0,0.00012567,2]
[323296294,1713879056320,-992.52,0.00012567,2]
[323296295,1713879056331,-602.21,0.00012567,2]
[323296296,1713879056340,-500.0,0.00012567,2]
[323296297,1713879056350,-500.0,0.00012567,2]
[323296298,1713879056359,-500.0,0.00012567,2]
[323296299,1713879056368,-500.0,0.00012567,2]
[323296300,1713879056377,-500.0,0.00012567,2]
[323296301,1713879056386,-500.0,0.00012567,2]
[323296302,1713879056395,-500.0,0.00012567,2]
[323296303,1713879056404,-500.0,0.00012567,2]
[323296304,1713879056414,-500.0,0.00012567,2]
[323296305,1713879056422,-500.0,0.00012567,2]
[323296306,1713879056431,-500.0,0.00012567,2]
[323296307,1713879056440,-928.15,0.00012567,2]
[323296308,1713879056449,-667.27,0.00012567,2]
[323296309,1713879056459,-500.0,0.00012567,2]
[323296310,1713879056468,-500.0,0.00012567,2]
[323296311,1713879056477,-593.92457915,0.00012567,2]
[323296312,1713879056485,-1267.59,0.00012567,2]
[323296313,1713879056495,-916.56,0.00012567,2]
[323296314,1713879056504,-500.0,0.00012567,2]
[323296315,1713879056513,-500.0,0.00012567,2]
[323296316,1713879056522,-500.0,0.00012567,2]
[323296317,1713879056531,-628.78,0.00012567,2]
[323296318,1713879056540,-628.94,0.00012567,2]
[323296319,1713879056549,-738.57,0.00012567,2]
[323296320,1713879056558,-500.0,0.00012567,2]
[323296321,1713879056567,-510.22,0.00012567,2]
[323296322,1713879056578,-500.0,0.00012567,2]
[323296323,1713879056587,-500.0,0.00012567,2]
[323296324,1713879056596,-500.0,0.00012567,2]
[323296325,1713879056605,-694.77,0.00012567,2]
[323296326,1713879056615,-808.82,0.00012567,2]
[323296327,1713879056624,-689.13,0.00012567,2]
[323296328,1713879056633,-848.09,0.00012567,2]
[323296329,1713879056642,-500.0,0.00012567,2]
[323296330,1713879056650,-500.0,0.00012567,2]
[323296331,1713879056659,-500.0,0.00012567,2]
[323296332,1713879056668,-607.66,0.00012567,2]
[323296333,1713879056677,-500.0,0.00012567,2]
[323296334,1713879056687,-500.0,0.00012567,2]
[323296335,1713879056696,-500.0,0.00012567,2]
[323296336,1713879056705,-904.27,0.00012567,2]
[323296337,1713879056714,-500.0,0.00012567,2]
[323296338,1713879056725,-500.0,0.00012567,2]
[323296339,1713879056735,-500.0,0.00012567,2]
[323296340,1713879056743,-500.0,0.00012567,2]
[323296341,1713879056753,-500.0,0.00012567,2]
[323296342,1713879056762,-500.0,0.00012567,2]
[323296343,1713879056771,-1336.63,0.00012567,2]
[323296344,1713879056781,-522.57,0.00012567,2]
[323296345,1713879056790,-506.8,0.00012567,2]
[323296346,1713879056799,-500.0,0.00012567,2]
[323296347,1713879056808,-927.47,0.00012567,2]
[323296348,1713879056818,-500.0,0.00012567,2]
[323296349,1713879056830,-841.25,0.00012567,2]
[323296350,1713879056841,-500.0,0.00012567,2]
[323296351,1713879056850,-648.16,0.00012567,2]
[323296352,1713879056861,-500.0,0.00012567,2]
[323296353,1713879056871,-500.0,0.00012567,2]
[323296354,1713879056879,-500.0,0.00012567,2]
[323296355,1713879056889,-500.0,0.00012567,2]
[323296356,1713879056898,-500.0,0.00012567,2]
[323296357,1713879056908,-500.0,0.00012567,2]
[323296358,1713879056917,-500.0,0.00012567,2]
[323296359,1713879056927,-500.0,0.00012567,2]
[323296360,1713879056937,-500.0,0.00012567,2]
[323296361,1713879056947,-495.84,0.00012567,2]
[323296362,1713879056959,-500.0,0.00012567,2]
[323296363,1713879056969,-500.0,0.00012567,2]
[323296364,1713879056979,-500.0,0.00012567,2]
[323296365,1713879056988,-605.56,0.00012567,2]
[323296366,1713879056998,-500.0,0.00012567,2]
[323296367,1713879057007,-500.0,0.00012567,2]
[323296368,1713879057016,-605.36,0.00012567,2]
[323296369,1713879057025,-500.0,0.00012567,2]
[323296370,1713879057068,-966.1,0.00012567,2]
[323296371,1713879057079,-500.0,0.00012567,2]
[323296372,1713879057088,-500.0,0.00012567,2]
[323296373,1713879057098,-500.0,0.00012567,2]
[323296374,1713879057108,-500.0,0.00012567,2]
[323296375,1713879057118,-500.0,0.00012567,2]
[323296376,1713879057127,-567.95,0.00012567,2]
[323296377,1713879057136,-500.0,0.00012567,2]
[323296378,1713879057146,-500.0,0.00012567,2]
[323296379,1713879057156,-280.0018805,0.00012567,2]
[323296380,1713879057166,-150.0,0.00012567,2]
[323296381,1713879057176,-525.95,0.00012567,2]
[323296382,1713879057186,-500.0,0.00012567,2]
[323296383,1713879057196,-500.0,0.00012567,2]
[323296384,1713879057206,-500.0,0.00012567,2]
[323296385,1713879057215,-535.83,0.00012567,2]
[323296386,1713879057224,-520.95,0.00012567,2]
[323296387,1713879057234,-639.77,0.00012567,2]
[323296388,1713879057244,-500.0,0.00012567,2]
[323296389,1713879057254,-500.0,0.00012567,2]
[323296390,1713879057263,-500.0,0.00012567,2]
[323296391,1713879057272,-500.0,0.00012567,2]
[323296392,1713879057281,-500.0,0.00012567,2]
[323296393,1713879057291,-500.0,0.00012567,2]
[323296394,1713879057301,-500.0,0.00012567,2]
[323296395,1713879057310,-629.43,0.00012567,2]
[323296396,1713879057320,-500.0,0.00012567,2]
[323296397,1713879057331,-809.97,0.00012567,2]
[323296398,1713879057341,-500.0,0.00012567,2]
[323296399,1713879057350,-505.41,0.00012567,2]
[323296400,1713879057360,-500.0,0.00012567,2]
[323296401,1713879057371,-500.0,0.00012567,2]
[323296402,1713879057381,-625.58,0.00012567,2]
[323296403,1713879057391,-500.0,0.00012567,2]
[323296404,1713879057401,-500.0,0.00012567,2]
[323296405,1713879057412,-692.69,0.00012567,2]
[323296406,1713879057422,-500.0,0.00012567,2]
[323296407,1713879057434,-500.0,0.00012567,2]
[323296408,1713879057444,-500.0,0.00012567,2]
[323296409,1713879057455,-1172.75,0.00012567,2]
[323296410,1713879057464,-500.0,0.00012567,2]
[323296411,1713879057473,-500.0,0.00012567,2]
[323296412,1713879057483,-500.0,0.00012567,2]
[323296413,1713879057492,-743.0,0.00012567,2]
[323296414,1713879057502,-675.43,0.00012567,2]
[323296415,1713879057511,-500.0,0.00012567,2]
[323296416,1713879057522,-500.0,0.00012567,2]
[323296417,1713879057533,-500.0,0.00012567,2]
[323296418,1713879057544,-500.0,0.00012567,2]
[323296419,1713879057555,-500.0,0.00012567,2]
[323296420,1713879057566,-500.0,0.00012567,2]
[323296421,1713879057576,-1312.46,0.00012567,2]
[323296422,1713879057587,-677.67,0.00012567,2]
[323296423,1713879057597,-933.21,0.00012567,2]
[323296424,1713879057608,-500.0,0.00012567,2]
[323296425,1713879057619,-500.0,0.00012567,2]
[323296426,1713879057629,-795.71,0.00012567,2]
[323296427,1713879057640,-500.0,0.00012567,2]
[323296428,1713879057650,-500.0,0.00012567,2]
[323296429,1713879057660,-515.21,0.00012567,2]
[323296430,1713879057672,-500.0,0.00012567,2]
[323296431,1713879057683,-500.0,0.00012567,2]
[323296432,1713879057693,-2059.68,0.00012567,2]
[323296433,1713879057703,-636.05,0.00012567,2]
[323296434,1713879057714,-500.0,0.00012567,2]
[323296435,1713879057725,-500.0,0.00012567,2]
[323296436,1713879057737,-500.0,0.00012567,2]
[323296437,1713879057748,-500.0,0.00012567,2]
[323296438,1713879057759,-581.28,0.00012567,2]
[323296439,1713879057770,-834.35,0.00012567,2]
[323296440,1713879057781,-500.0,0.00012567,2]
[323296441,1713879057792,-500.0,0.00012567,2]
[323296442,1713879057802,-500.0,0.00012567,2]
[323296443,1713879057812,-506.45,0.00012567,2]
[323296444,1713879057822,-615.15,0.00012567,2]
[323296445,1713879057832,-500.0,0.00012567,2]
[323296446,1713879057842,-500.0,0.00012567,2]
[323296447,1713879057854,-511.2,0.00012567,2]
[323296448,1713879057864,-500.0,0.00012567,2]
[323296449,1713879057874,-2072.39,0.00012567,2]
[323296450,1713879057885,-500.0,0.00012567,2]
[323296451,1713879057896,-500.0,0.00012567,2]
[323296452,1713879057906,-27976.82,0.00012567,2]
[323296453,1713879057916,-912.15,0.00012567,2]
[323296454,1713879057926,-500.0,0.00012567,2]
[323296455,1713879057937,-782.52,0.00012567,2]
[323296456,1713879057947,-707.42,0.00012567,2]
[323296457,1713879057959,-500.0,0.00012567,2]
[323296458,1713879057970,-626.48,0.00012567,2]
[323296459,1713879057981,-500.0,0.00012567,2]
[323296460,1713879057991,-500.0,0.00012567,2]
[323296461,1713879058003,-500.0,0.00012567,2]
[323296462,1713879058013,-3473.51,0.00012567,2]
[323296463,1713879058023,-4476.31,0.00012567,2]
[323296464,1713879058035,-500.0,0.00012567,2]
[323296465,1713879058047,-885.23,0.00012567,2]
[323296466,1713879058058,-502.46,0.00012567,2]
[323296467,1713879058069,-500.0,0.00012567,2]
[323296468,1713879058081,-523.52,0.00012567,2]
[323296469,1713879058090,-500.0,0.00012567,2]
[323296470,1713879058101,-1665.8,0.00012567,2]
[323296471,1713879058112,-1425.31,0.00012567,2]
[323296472,1713879058123,-950.72,0.00012567,2]
[323296473,1713879058133,-500.0,0.00012567,2]
[323296474,1713879058144,-500.0,0.00012567,2]
[323296475,1713879058154,-500.0,0.00012567,2]
[323296476,1713879058164,-253.36,0.00012567,2]
[323296477,1713879058175,-1495.28,0.00012567,2]
[323296478,1713879058186,-500.0,0.00012567,2]
[323296479,1713879058196,-500.0,0.00012567,2]
[323296480,1713879058207,-500.0,0.00012567,2]
[323296481,1713879058218,-500.0,0.00012567,2]
[323296482,1713879058228,-276.00147888,0.00012567,2]
[323296483,1713879058238,-534.48,0.00012567,2]
[323296484,1713879058249,-504.09,0.00012567,2]
[323296485,1713879058259,-888.67,0.00012567,2]
[323296486,1713879058269,-1009.16,0.00012567,2]
[323296487,1713879058280,-842.74,0.00012567,2]
[323296488,1713879058290,-4748.36,0.00012567,2]
[323296489,1713879058300,-500.0,0.00012567,2]
[323296490,1713879058312,-637.91,0.00012567,2]
[323296491,1713879058322,-1000.0,0.00012567,2]
[323296492,1713879058333,-643.14,0.00012567,2]
[323296493,1713879058343,-500.0,0.00012567,2]
[323296494,1713879058353,-550.83,0.00012567,2]
[323296495,1713879058362,-500.0,0.00012567,2]
[323296496,1713879058371,-500.0,0.00012567,2]
[323296497,1713879058381,-500.0,0.00012567,2]
[323296498,1713879058391,-2386.36,0.00012567,2]
[323296499,1713879058401,-500.0,0.00012567,2]
[323296500,1713879058410,-500.0,0.00012567,2]
[323296501,1713879058419,-1928.19,0.00012567,2]
[323296502,1713879058429,-1977.83,0.00012567,2]
[323296503,1713879058438,-500.0,0.00012567,2]
[323296504,1713879058447,-500.0,0.00012567,2]
[323296505,1713879058457,-500.0,0.00012567,2]
[323296506,1713879058466,-500.0,0.00012567,2]
[323296507,1713879058476,-1868.98,0.00012567,2]
[323296508,1713879058486,-500.0,0.00012567,2]
[323296509,1713879058496,-500.0,0.00012567,2]
[323296510,1713879058505,-1984.84,0.00012567,2]
[323296511,1713879058514,-500.0,0.00012567,2]
[323296512,1713879058524,-619.17,0.00012567,2]
[323296513,1713879058534,-500.0,0.00012567,2]
[323296514,1713879058543,-477.36932041,0.00012567,2]
[323296515,1713879058553,-500.0,0.00012567,2]
[323296516,1713879058562,-1402.94,0.00012567,2]
[323296517,1713879058573,-500.0,0.00012567,2]
[323296518,1713879058582,-576.72,0.00012567,2]
[323296519,1713879058591,-500.0,0.00012567,2]
[323296520,1713879058600,-500.0,0.00012567,2]
[323296521,1713879058610,-895.03,0.00012567,2]
[323296522,1713879058619,-715.88,0.00012567,2]
[323296523,1713879058629,-999.39,0.00012567,2]
[323296524,1713879058639,-500.0,0.00012567,2]
[323296525,1713879058649,-564.41985207,0.00012568,2]
[323296526,1713879058658,-500.0,0.00012568,2]
[323296527,1713879058668,-500.0,0.00012568,2]
[323296528,1713879058677,-791.32,0.00012568,2]
[323296529,1713879058687,-500.0,0.00012568,2]
[323296530,1713879058696,-500.0,0.00012568,2]
[323296531,1713879058706,-500.0,0.00012568,2]
[323296532,1713879058715,-500.0,0.00012568,2]
[323296533,1713879058724,-150.0,0.00012568,2]
[323296534,1713879058734,-630.36,0.00012568,2]
[323296535,1713879058744,-500.0,0.00012569,2]
[323296536,1713879058755,-500.0,0.00012569,2]
[323296537,1713879058765,-500.0,0.00012569,2]
[323296538,1713879058774,-500.0,0.00012569,2]
[323296539,1713879058785,-500.0,0.00012569,2]
[323296540,1713879058795,-500.0,0.00012569,2]
[323296541,1713879058804,-500.0,0.00012569,2]
[323296542,1713879058814,-500.0,0.00012569,2]
[323296543,1713879058824,-500.0,0.00012569,2]
[323296544,1713879058835,-500.0,0.00012569,2]
[323296545,1713879058844,-500.0,0.00012569,2]
[323296546,1713879058854,-500.0,0.00012569,2]
[323296547,1713879058864,-500.0,0.00012569,2]
[323296548,1713879058874,-500.0,0.00012569,2]
[323296549,1713879058883,-500.0,0.00012569,2]
[323296550,1713879058893,-500.0,0.00012569,2]
[323296551,1713879058903,-500.0,0.00012569,2]
[323296552,1713879058913,-615.07,0.00012569,2]
[323296553,1713879058923,-500.0,0.00012569,2]
[323296554,1713879058933,-150.0,0.00012572,2]
[323296555,1713879058944,-1066.55112636,0.00012576,2]
[323296556,1713879058955,-791.32,0.00012592,2]
[323296557,1713879058966,-150.0,0.00012592,2]
[323296558,1713879058976,-150.0,0.00012599,2]
[323296559,1713879058986,-300.0,0.000126,4]
[323296560,1713879058996,-150.0,0.00012608,2]
[323296561,1713879059006,-150.0,0.00012608,2]
[323296562,1713879059015,-150.0,0.00012621,2]
[323296563,1713879059024,-150.0,0.00012623,2]
[323296564,1713879059035,-150.0,0.00012628,2]
[323296565,1713879059045,-2845.29422279,0.00012632,2]
[323296566,1713879059055,-2104.217,0.00012633,2]
[323296567,1713879059064,-560.035,0.00012633,2]
[323296568,1713879059077,-300.0,0.00012635,2]
[323296569,1713879059086,-150.0,0.00012648,2]
[323296570,1713879059096,-150.0,0.0001266,2]
[323296571,1713879059106,-150.0,0.00012665,2]
[323296572,1713879059116,-150.0,0.00012667,2]
[323296573,1713879059125,-150.0,0.00012667,2]